fUSD/lending_fUSD_20250113
["ID","MTS","AMOUNT","RATE_DAILY","PERIOD"]
[348716011,1736747433022,-500.0,9.998e-05,2]
[348716013,1736747433031,-502.70602966,9.998e-05,2]
[348716015,1736747433042,-501.67,9.998e-05,2]
[348716017,1736747433052,-500.0,9.998e-05,2]
[348716018,1736747433061,-500.0,9.998e-05,2]
[348716020,1736747433070,-500.0,9.998e-05,2]
[348716022,1736747433079,-1935.84,9.998e-05,2]
[348716024,1736747433088,-500.0,9.998e-05,2]
[348716026,1736747433098,-557.74,9.998e-05,2]
[348716028,1736747433108,-500.0,9.998e-05,2]
[348716030,1736747433118,-500.0,9.998e-05,2]
[348716032,1736747433128,-500.0,9.998e-05,2]
[348716034,1736747433137,-500.0,9.998e-05,2]
[348716036,1736747433146,-500.0,9.998e-05,2]
[348716038,1736747433156,-500.0,9.998e-05,2]
[348716040,1736747433165,-500.0,9.998e-05,2]
[348716042,1736747433175,-500.0,9.998e-05,2]
[348716044,1736747433185,-500.0,9.998e-05,2]
[348716046,1736747433194,-1195.61,9.998e-05,2]
[348716048,1736747433203,-500.0,9.998e-05,2]
[348716050,1736747433212,-539.04018271,9.998e-05,2]
[348716051,1736747433221,-500.0,9.998e-05,2]
[348716053,1736747433230,-500.0,9.998e-05,2]
[348716055,1736747433240,-502.21703234,9.998e-05,2]
[348716057,1736747433249,-500.0,9.998e-05,2]
[348716059,1736747433259,-500.0,9.998e-05,2]
[348716061,1736747433268,-500.0,9.998e-05,2]
[348716063,1736747433277,-500.0,9.998e-05,2]
[348716065,1736747433287,-500.0,9.998e-05,2]
[348716067,1736747433296,-500.0,9.998e-05,2]
[348716069,1736747433306,-500.0,9.998e-05,2]
[348716071,1736747433316,-500.0,9.998e-05,2]
[348716073,1736747433325,-500.0,9.998e-05,2]
[348716075,1736747433334,-500.0,9.998e-05,2]
[348716077,1736747433343,-500.0,9.998e-05,2]
[348716079,1736747433353,-906.94,9.998e-05,2]
[348716081,1736747433364,-500.0,9.998e-05,2]
[348716083,1736747433373,-500.0,9.998e-05,2]
[348716085,1736747433382,-902.61,9.998e-05,2]
[348716087,1736747433391,-500.0,9.998e-05,2]
[348716089,1736747433402,-212.49760501,9.998e-05,2]
[348716091,1736747433411,-500.0,9.998e-05,2]
[348716093,1736747433421,-500.0,9.998e-05,2]
[348716095,1736747433430,-500.0,9.998e-05,2]
[348716097,1736747433440,-500.0,9.998e-05,2]
[348716099,1736747433450,-500.0,9.998e-05,2]
[348716101,1736747433459,-501.81239221,9.998e-05,2]
[348716103,1736747433468,-500.0,9.998e-05,2]
[348716105,1736747433477,-502.27889438,9.998e-05,2]
[348716106,1736747433487,-500.0,9.998e-05,2]
[348716108,1736747433496,-500.0,9.998e-05,2]
[348716110,1736747433505,-502.7417216,9.998e-05,2]
[348716112,1736747433515,-500.0,9.998e-05,2]
[348716114,1736747433524,-500.0,9.998e-05,2]
[348716116,1736747433534,-500.0,9.998e-05,2]
[348716118,1736747433544,-500.0,9.998e-05,2]
[348716120,1736747433554,-500.0,9.998e-05,2]
[348716122,1736747433563,-537.95586176,9.998e-05,2]
[348716124,1736747433572,-500.0,9.998e-05,2]
[348716126,1736747433581,-502.72767926,9.998e-05,2]
[348716128,1736747433591,-500.0,9.998e-05,2]
[348716130,1736747433600,-500.0,9.998e-05,2]
[348716132,1736747433610,-500.63742246,9.998e-05,2]
[348716134,1736747433619,-500.0,9.998e-05,2]
[348716136,1736747433629,-500.0,9.998e-05,2]
[348716138,1736747433638,-500.0,9.998e-05,2]
[348716140,1736747433648,-504.25502947,9.998e-05,2]
[348716142,1736747433657,-500.0,9.998e-05,2]
[348716144,1736747433667,-500.0,9.998e-05,2]
[348716146,1736747433676,-500.0,9.998e-05,2]
[348716148,1736747433685,-500.0,9.998e-05,2]
[348716150,1736747433695,-500.0,9.998e-05,2]
[348716152,1736747433704,-500.0,9.998e-05,2]
[348716154,1736747433713,-500.0,9.998e-05,2]
[348716156,1736747433723,-559.16,9.998e-05,2]
[348716158,1736747433732,-753.36,9.998e-05,2]
[348716160,1736747433742,-500.0,9.998e-05,2]
[348716162,1736747433751,-500.0,9.998e-05,2]
[348716164,1736747433761,-500.0,9.998e-05,2]
[348716166,1736747433771,-500.0,9.998e-05,2]
[348716168,1736747433780,-500.0,9.998e-05,2]
[348716170,1736747433790,-500.0,9.998e-05,2]
[348716172,1736747433800,-500.0,9.998e-05,2]
[348716174,1736747433809,-500.0,9.998e-05,2]
[348716176,1736747433819,-500.0,9.998e-05,2]
[348716178,1736747433828,-620.12052017,9.998e-05,2]
[348716180,1736747433842,-215.74947983,9.998e-05,2]
[348716182,1736747433852,-153.71052017,9.998e-05,2]
[348716335,1736747440220,-356.24718885,9.998e-05,2]
[348716336,1736747440229,-447.63479114,9.998e-05,2]
[348716337,1736747440248,-52.36520886,9.998e-05,2]
[348716338,1736747440258,-500.0,9.998e-05,2]
[348716339,1736747440267,-505.43534017,9.998e-05,2]
[348716340,1736747440276,-131.56645497,9.998e-05,2]
[348716341,1736747440287,-368.43354503,9.998e-05,2]
[348716342,1736747440296,-500.0,9.998e-05,2]
[348716343,1736747440305,-500.0,9.998e-05,2]
[348716344,1736747440314,-500.0,9.998e-05,2]
[348716345,1736747440323,-500.0,9.998e-05,2]
[348716346,1736747440332,-506.56644472,9.998e-05,2]
[348716347,1736747440341,-500.0,9.998e-05,2]
[348716349,1736747440350,-500.0,9.998e-05,2]
[348716350,1736747440359,-500.0,9.998e-05,2]
[348716352,1736747440369,-501.58801423,9.998e-05,2]
[348716353,1736747440379,-500.0,9.998e-05,2]
[348716354,1736747440389,-500.0,9.998e-05,2]
[348716355,1736747440399,-564.58622935,9.998e-05,2]
[348716356,1736747440410,-500.0,9.998e-05,2]
[348716357,1736747440419,-500.0,9.998e-05,2]
[348716358,1736747440429,-500.0,9.998e-05,2]
[348716359,1736747440439,-500.0,9.998e-05,2]
[348716360,1736747440449,-500.0,9.998e-05,2]
[348716361,1736747440459,-500.0,9.998e-05,2]
[348716362,1736747440469,-500.0,9.998e-05,2]
[348716363,1736747440478,-500.0,9.998e-05,2]
[348716364,1736747440488,-500.0,9.998e-05,2]
[348716365,1736747440497,-508.3177765,9.998e-05,2]
[348716366,1736747440507,-500.0,9.998e-05,2]
[348716367,1736747440516,-500.0,9.998e-05,2]
[348716368,1736747440525,-500.0,9.998e-05,2]
[348716369,1736747440535,-500.0,9.998e-05,2]
[348716370,1736747440545,-500.0,9.998e-05,2]
[348716371,1736747440554,-1005.33,9.998e-05,2]
[348716372,1736747440563,-500.0,9.998e-05,2]
[348716373,1736747440573,-500.0,9.998e-05,2]
[348716374,1736747440582,-500.0,9.998e-05,2]
[348716375,1736747440592,-500.0,9.998e-05,2]
[348716376,1736747440602,-500.0,9.998e-05,2]
[348716377,1736747440611,-500.0,9.998e-05,2]
[348716378,1736747440621,-500.0,9.998e-05,2]
[348716379,1736747440631,-500.0,9.998e-05,2]
[348716380,1736747440640,-500.0,9.998e-05,2]
[348716381,1736747440650,-500.0,9.998e-05,2]
[348716382,1736747440659,-2727.04,9.998e-05,2]
[348716383,1736747440668,-500.0,9.998e-05,2]
[348716384,1736747440677,-500.0,9.998e-05,2]
[348716385,1736747440686,-500.0,9.998e-05,2]
[348716386,1736747440695,-500.0,9.998e-05,2]
[348716387,1736747440705,-500.0,9.998e-05,2]
[348716388,1736747440714,-2083.88339502,9.998e-05,2]
[348716389,1736747440724,-906.84,9.999e-05,2]
[348716390,1736747440735,-871.74,9.999e-05,2]
[348716391,1736747440745,-1175.79,9.999e-05,2]
[348716392,1736747440754,-500.0,9.999e-05,2]
[348716393,1736747440763,-734.49,9.999e-05,2]
[348716394,1736747440773,-500.0,9.999e-05,2]
[348716395,1736747440782,-1576.26,9.999e-05,2]
[348716396,1736747440792,-1567.89,9.999e-05,2]
[348716397,1736747440802,-500.0,9.999e-05,2]
[348716398,1736747440812,-1674.49,9.999e-05,2]
[348716399,1736747440822,-500.0,9.999e-05,2]
[348716400,1736747440831,-309.31,9.999e-05,2]
[348716401,1736747440841,-1346.57,9.999e-05,2]
[348716402,1736747440850,-926.0,9.999e-05,2]
[348716403,1736747440859,-1154.7,9.999e-05,2]
[348716404,1736747440868,-607.5,9.999e-05,2]
[348716405,1736747440878,-2152.95,9.999e-05,2]
[348716406,1736747440887,-500.0,9.999e-05,2]
[348716407,1736747440896,-669.02,9.999e-05,2]
[348716408,1736747440907,-745.5,9.999e-05,2]
[348716409,1736747440916,-2006.99,9.999e-05,2]
[348716410,1736747440925,-669.52,9.999e-05,2]
[348716411,1736747440935,-1009.58,9.999e-05,2]
[348716412,1736747440944,-1633.75,9.999e-05,2]
[348716414,1736747440954,-500.0,9.999e-05,2]
[348716416,1736747440968,-500.0,9.999e-05,2]
[348716418,1736747440978,-897.05,9.999e-05,2]
[348716420,1736747440987,-500.0,9.999e-05,2]
[348716422,1736747440996,-642.1,9.999e-05,2]
[348716424,1736747441007,-2244.35,9.999e-05,2]
[348716426,1736747441017,-2174.12,9.999e-05,2]
[348716428,1736747441026,-500.0,9.999e-05,2]
[348716430,1736747441036,-654.37,9.999e-05,2]
[348716432,1736747441045,-500.0,9.999e-05,2]
[348716434,1736747441055,-1286.4,9.999e-05,2]
[348716436,1736747441064,-843.37,9.999e-05,2]
[348716438,1736747441073,-513.99,9.999e-05,2]
[348716440,1736747441082,-2480.9,9.999e-05,2]
[348716442,1736747441091,-1557.94,9.999e-05,2]
[348716444,1736747441100,-924.59,9.999e-05,2]
[348716446,1736747441110,-734.07,9.999e-05,2]
[348716448,1736747441118,-830.82,9.999e-05,2]
[348716450,1736747441128,-773.74,9.999e-05,2]
[348716452,1736747441137,-1308.0,0.0001,2]
[348716454,1736747441146,-20129.73194636,0.0001,2]
[348716457,1736747441173,-501.0,0.0001,2]
[348716460,1736747441188,-5022.83878383,0.0001,2]
[348716534,1736747441919,-500.0,9.998e-05,2]
[348716535,1736747441929,-500.0,9.998e-05,2]
[348716536,1736747441938,-500.0,9.998e-05,2]
[348716537,1736747441948,-500.0,9.998e-05,2]
[348716538,1736747441958,-500.0,9.999e-05,2]
[348716539,1736747441972,-500.0,9.999e-05,2]
[348716541,1736747441981,-500.0,9.999e-05,2]
[348716543,1736747441991,-39.19414476,0.0001,2]
[348716545,1736747442003,-312.89403723,0.0001,2]
[348716547,1736747442013,-328960.49828658,0.0001,2]
[348716549,1736747442025,-18292.05466676,0.0001,2]
[348716551,1736747442035,-4719.00322556,0.0001,2]
[348716554,1736747442048,-209995.99168541,0.0001,2]
[348716556,1736747442060,-3574.0,0.0001,2]
[348716558,1736747442071,-5845.74560316,0.0001,2]
[348716560,1736747442082,-11710.53549523,0.0001,2]
[348716563,1736747442093,-451.15504761,0.0001,2]
[348716565,1736747442104,-2943.84242347,0.0001,2]
[348716567,1736747442114,-974.80061012,0.0001,2]
[348716569,1736747442129,-960.0,0.0001,2]
[348716573,1736747442154,-500.0,9.998e-05,2]
[348716575,1736747442163,-123414.69518573,0.0001,2]
[348716577,1736747442172,-7015.1379887,0.0001,2]
[348716579,1736747442182,-331.65505043,0.0001,2]
[348716581,1736747442191,-7312.62577763,0.0001,2]
[348716583,1736747442200,-6940.37343003,0.0001,2]
[348716585,1736747442210,-658.2689816,0.0001,2]
[348716587,1736747442219,-13396789.41693545,0.0001,2]
[348716589,1736747442227,-398.17783416,0.0001,2]
[348716591,1736747442236,-200.0,0.0001,2]
[348716593,1736747442245,-200.0,0.0001,2]
[348716595,1736747442254,-2000.0,0.0001,2]
[348716597,1736747442264,-195.09,0.0001,2]
[348716599,1736747442273,-200.0,0.0001,2]
[348716601,1736747442282,-300.45,0.0001,2]
[348716603,1736747442291,-1378.12692772,0.0001,2]
[348716605,1736747442300,-173.92237801,0.0001,2]
[348716607,1736747442310,-293.09658432,0.0001,2]
[348716609,1736747442319,-412.89944691,0.0001,2]
[348716611,1736747442328,-2000.0,0.0001,2]
[348716613,1736747442337,-1815.88621162,0.0001,2]
[348716615,1736747442346,-200.0,0.0001,2]
[348716617,1736747442356,-365.031511,0.0001,2]
[348716619,1736747442365,-159.55000779,0.0001,2]
[348716621,1736747442374,-988.38,0.0001,2]
[348716623,1736747442382,-200.0,0.000101,2]
[348716625,1736747442391,-2000.0,0.000101,2]
[348716627,1736747442401,-200.0,0.000101,2]
[348716629,1736747442410,-2000.0,0.000101,2]
[348716631,1736747442419,-200.0,0.000101,2]
[348716633,1736747442428,-12781.76965,0.00010111,2]
[348716635,1736747442437,-500.0,0.00010136,2]
[348716636,1736747442446,-515.3,0.00010137,2]
[348716638,1736747442455,-352.28,0.00010137,2]
[348716640,1736747442464,-200.0,0.00010201,2]
[348716642,1736747442474,-2000.0,0.00010201,2]
[348716644,1736747442483,-200.0,0.00010201,2]
[348716646,1736747442492,-2000.0,0.00010201,2]
[348716648,1736747442501,-200.0,0.00010201,2]
[348716650,1736747442510,-758.32,0.00010272,2]
[348716652,1736747442519,-599.73,0.00010272,2]
[348716654,1736747442528,-500.0,0.00010272,2]
[348716656,1736747442537,-500.0,0.00010272,2]
[348716658,1736747442547,-817.05,0.00010272,2]
[348716660,1736747442556,-519.54,0.00010272,2]
[348716662,1736747442566,-585.5,0.00010272,2]
[348716664,1736747442575,-582.15558254,0.00010272,2]
[348716666,1736747442585,-466.76186132,0.00010272,2]
[348716668,1736747442594,-500.0,0.00010272,2]
[348716670,1736747442603,-500.0,0.00010272,2]
[348716672,1736747442612,-587.31,0.00010272,2]
[348716674,1736747442621,-500.0,0.00010272,2]
[348716676,1736747442631,-500.0,0.00010272,2]
[348716678,1736747442640,-500.0,0.00010272,2]
[348716680,1736747442649,-500.0,0.00010272,2]
[348716682,1736747442659,-500.0,0.00010272,2]
[348716684,1736747442668,-533.27,0.00010272,2]
[348716686,1736747442678,-500.0,0.00010272,2]
[348716688,1736747442687,-500.0,0.00010272,2]
[348716690,1736747442697,-500.0,0.00010272,2]
[348716693,1736747442706,-500.0,0.00010272,2]
[348716695,1736747442716,-500.0,0.00010272,2]
[348716697,1736747442726,-903.86,0.00010272,2]
[348716699,1736747442735,-980.02,0.00010272,2]
[348716701,1736747442744,-500.0,0.00010272,2]
[348716703,1736747442753,-438.7,0.00010272,2]
[348716704,1736747442762,-513.82,0.00010272,2]
[348716706,1736747442771,-1096.82,0.00010272,2]
[348716709,1736747442782,-1713.73,0.00010272,2]
[348716711,1736747442793,-500.0,0.00010272,2]
[348716712,1736747442802,-506.77555349,0.00010272,2]
[348716715,1736747442811,-500.0,0.00010272,2]
[348716717,1736747442822,-510.66706751,0.00010272,2]
[348716719,1736747442831,-500.0,0.00010272,2]
[348716721,1736747442841,-521.25738816,0.00010272,2]
[348716722,1736747442850,-1127.49,0.00010272,2]
[348716724,1736747442859,-500.0,0.00010272,2]
[348716726,1736747442868,-760.99,0.00010272,2]
[348716728,1736747442877,-500.0,0.00010272,2]
[348716730,1736747442887,-500.0,0.00010272,2]
[348716732,1736747442896,-500.0,0.00010272,2]
[348716734,1736747442905,-500.0,0.00010272,2]
[348716736,1736747442915,-500.0,0.00010272,2]
[348716738,1736747442924,-508.93510834,0.00010272,2]
[348716740,1736747442933,-502.19,0.00010272,2]
[348716742,1736747442942,-2098.79,0.00010272,2]
[348716744,1736747442951,-500.0,0.00010272,2]
[348716746,1736747442964,-500.0,0.00010272,2]
[348716747,1736747442973,-500.0,0.00010272,2]
[348716748,1736747442983,-540.34,0.00010272,2]
[348716749,1736747442992,-574.80529936,0.00010272,2]
[348716750,1736747443003,-545.36180649,0.00010272,2]
[348716751,1736747443013,-500.0,0.00010272,2]
[348716752,1736747443022,-500.0,0.00010272,2]
[348716753,1736747443031,-3120.37,0.00010272,2]
[348716754,1736747443041,-500.0,0.00010272,2]
[348716755,1736747443051,-500.0,0.00010272,2]
[348716756,1736747443061,-500.0,0.00010272,2]
[348716757,1736747443071,-500.0,0.00010272,2]
[348716758,1736747443080,-1987.26,0.00010272,2]
[348716759,1736747443090,-500.0,0.00010272,2]
[348716760,1736747443099,-533.88,0.00010272,2]
[348716761,1736747443109,-500.0,0.00010272,2]
[348716762,1736747443118,-508.59787523,0.00010272,2]
[348716763,1736747443127,-500.0,0.00010272,2]
[348716764,1736747443136,-500.0,0.00010272,2]
[348716765,1736747443146,-715.98,0.00010272,2]
[348716766,1736747443159,-500.0,0.00010272,2]
[348716767,1736747443168,-500.0,0.00010272,2]
[348716768,1736747443334,-500.0,0.00010272,2]
[348716769,1736747443356,-500.0,0.00010272,2]
[348716770,1736747443366,-500.0,0.00010272,2]
[348716771,1736747443375,-179.63652207,0.00010272,2]
[348716772,1736747443385,-641.3574679,0.00010272,2]
[348716773,1736747443406,-509.18290027,0.00010272,2]
[348716774,1736747443418,-500.0,0.00010272,2]
[348716775,1736747443429,-500.0,0.00010272,2]
[348716776,1736747443440,-500.0,0.00010272,2]
[348716777,1736747443450,-500.0,0.00010272,2]
[348716778,1736747443461,-528.35,0.00010272,2]
[348716779,1736747443472,-500.0,0.00010272,2]
[348716780,1736747443482,-509.31430515,0.00010272,2]
[348716781,1736747443493,-2018.76,0.00010272,2]
[348716782,1736747443503,-507.71328639,0.00010272,2]
[348716783,1736747443513,-500.0,0.00010272,2]
[348716784,1736747443524,-500.0,0.00010272,2]
[348716785,1736747443534,-500.0,0.00010272,2]
[348716786,1736747443545,-500.0,0.00010272,2]
[348716787,1736747443556,-500.0,0.00010272,2]
[348716788,1736747443567,-524.34,0.00010272,2]
[348716789,1736747443577,-693.44,0.00010272,2]
[348716790,1736747443588,-500.0,0.00010272,2]
[348716791,1736747443598,-500.0,0.00010272,2]
[348716792,1736747443608,-500.0,0.00010272,2]
[348716793,1736747443619,-1280.18,0.00010272,2]
[348716794,1736747443629,-2061.82,0.00010272,2]
[348716795,1736747443640,-500.0,0.00010272,2]
[348716796,1736747443650,-500.0,0.00010272,2]
[348716797,1736747443661,-500.0,0.00010272,2]
[348716798,1736747443672,-1346.82,0.00010272,2]
[348716799,1736747443682,-500.0,0.00010272,2]
[348716800,1736747443693,-724.25,0.00010272,2]
[348716801,1736747443704,-500.0,0.00010272,2]
[348716802,1736747443714,-500.0,0.00010272,2]
[348716803,1736747443724,-1253.85,0.00010272,2]
[348716804,1736747443734,-500.0,0.00010272,2]
[348716805,1736747443745,-1920.53,0.00010272,2]
[348716806,1736747443755,-500.0,0.00010272,2]
[348716807,1736747443766,-642.34,0.00010272,2]
[348716808,1736747443777,-500.0,0.00010272,2]
[348716810,1736747443787,-500.0,0.00010272,2]
[348716812,1736747443797,-500.0,0.00010272,2]
[348716813,1736747443807,-501.67,0.00010272,2]
[348716814,1736747443817,-758.888155,0.00010272,2]
[348716815,1736747443827,-500.0,0.00010272,2]
[348716816,1736747443836,-1935.84,0.00010272,2]
[348716817,1736747443846,-557.74,0.00010272,2]
[348716819,1736747443856,-156.790775,0.00010272,2]
[348716821,1736747443866,-500.0,0.00010272,2]
[348716823,1736747443875,-500.0,0.00010272,2]
[348716825,1736747443885,-156.735981,0.00010272,2]
[348716827,1736747443895,-500.0,0.00010272,2]
[348716830,1736747443906,-1195.61,0.00010272,2]
[348716832,1736747443916,-500.0,0.00010272,2]
[348716834,1736747443925,-393.0135906,0.00010272,2]
[348716836,1736747443935,-500.0,0.00010272,2]
[348716838,1736747443944,-500.0,0.00010272,2]
[348716840,1736747443954,-768.963322,0.00010272,2]
[348716842,1736747443968,-906.94,0.00010272,2]
[348716844,1736747443978,-500.0,0.00010272,2]
[348716846,1736747443988,-902.61,0.00010272,2]
[348716848,1736747443998,-500.0,0.00010272,2]
[348716850,1736747444009,-500.0,0.00010272,2]
[348716852,1736747444018,-500.0,0.00010272,2]
[348716854,1736747444028,-500.0,0.00010272,2]
[348716856,1736747444038,-500.0,0.00010272,2]
[348716858,1736747444049,-500.0,0.00010272,2]
[348716860,1736747444059,-635.6876136,0.00010272,2]
[348716862,1736747444069,-502.77021046,0.00010272,2]
[348716865,1736747444079,-559.16,0.00010272,2]
[348716867,1736747444090,-500.0,0.00010272,2]
[348716869,1736747444100,-753.36,0.00010272,2]
[348716870,1736747444109,-500.0,0.00010272,2]
[348716871,1736747444119,-505.27246082,0.00010272,2]
[348716872,1736747444129,-500.0,0.00010272,2]
[348716873,1736747444139,-500.0,0.00010272,2]
[348716874,1736747444149,-835.87,0.00010272,2]
[348716875,1736747444160,-500.0,0.00010272,2]
[348716876,1736747444169,-508.20119983,0.00010272,2]
[348716877,1736747444179,-500.0,0.00010272,2]
[348716878,1736747444189,-500.0,0.00010272,2]
[348716879,1736747444199,-500.0,0.00010272,2]
[348716880,1736747444209,-505.46530885,0.00010272,2]
[348716881,1736747444219,-1005.33,0.00010272,2]
[348716882,1736747444228,-500.0,0.00010272,2]
[348716883,1736747444243,-500.0,0.00010272,2]
[348716884,1736747444254,-402.28535036,0.00010272,2]
[348716885,1736747444264,-500.0,0.00010272,2]
[348716886,1736747444275,-2727.04,0.00010272,2]
[348716887,1736747444285,-500.0,0.00010272,2]
[348716888,1736747444295,-500.0,0.00010272,2]
[348716889,1736747444307,-500.0,0.00010272,2]
[348716890,1736747444319,-500.0,0.00010273,2]
[348716891,1736747444329,-500.0,0.00010273,2]
[348716892,1736747444340,-500.0,0.00010273,2]
[348716893,1736747444350,-1355.33,0.00010273,2]
[348716894,1736747444360,-500.0,0.00010273,2]
[348716895,1736747444370,-887.86,0.00010273,2]
[348716896,1736747444380,-310.86265037,0.00010273,2]
[348716897,1736747444390,-553.86,0.00010273,2]
[348716898,1736747444401,-512.41579649,0.00010273,2]
[348716899,1736747444411,-500.0,0.00010273,2]
[348716900,1736747444422,-518.03228948,0.00010273,2]
[348716901,1736747444431,-500.0,0.00010273,2]
[348716902,1736747444442,-523.02,0.00010273,2]
[348716903,1736747444451,-584.30491524,0.00010273,2]
[348716904,1736747444462,-500.0,0.00010273,2]
[348716905,1736747444472,-648.0,0.00010273,2]
[348716906,1736747444482,-500.0,0.00010273,2]
[348716907,1736747444491,-519.53,0.00010273,2]
[348716908,1736747444502,-152.91488275,0.00010273,2]
[348716909,1736747444512,-644.16834226,0.00010273,2]
[348716910,1736747444522,-500.0,0.00010273,2]
[348716911,1736747444531,-186.62821341,0.00010273,2]
[348716912,1736747444541,-551.06,0.00010273,2]
[348716913,1736747444552,-500.0,0.00010273,2]
[348716914,1736747444561,-542.73,0.00010273,2]
[348716915,1736747444570,-500.0,0.00010273,2]
[348716916,1736747444580,-500.0,0.00010273,2]
[348716917,1736747444590,-549.91,0.00010273,2]
[348716918,1736747444600,-500.0,0.00010273,2]
[348716919,1736747444610,-533.96,0.00010273,2]
[348716920,1736747444620,-500.0,0.00010273,2]
[348716921,1736747444630,-500.0,0.00010273,2]
[348716922,1736747444640,-500.0,0.00010273,2]
[348716923,1736747444650,-500.0,0.00010273,2]
[348716924,1736747444660,-607.28,0.00010273,2]
[348716925,1736747444670,-500.0,0.00010273,2]
[348716926,1736747444680,-1039.92,0.00010273,2]
[348716927,1736747444689,-538.94,0.00010273,2]
[348716928,1736747444699,-676.48,0.00010273,2]
[348716929,1736747444708,-524.62267878,0.00010273,2]
[348716930,1736747444718,-569.61,0.00010273,2]
[348716931,1736747444728,-500.0,0.00010273,2]
[348716932,1736747444738,-500.0,0.00010273,2]
[348716933,1736747444747,-500.0,0.00010273,2]
[348716934,1736747444757,-500.0,0.00010273,2]
[348716935,1736747444767,-174.26,0.00010273,2]
[348716936,1736747444777,-500.0,0.00010273,2]
[348716937,1736747444787,-715.87,0.00010273,2]
[348716938,1736747444797,-906.84,0.00010273,2]
[348716939,1736747444806,-1175.79,0.00010273,2]
[348716940,1736747444816,-500.0,0.00010273,2]
[348716941,1736747444827,-734.49,0.00010273,2]
[348716942,1736747444837,-1576.26,0.00010273,2]
[348716943,1736747444847,-1567.89,0.00010273,2]
[348716944,1736747444857,-1674.49,0.00010273,2]
[348716945,1736747444867,-1346.57,0.00010273,2]
[348716946,1736747444877,-926.0,0.00010273,2]
[348716947,1736747444887,-1154.7,0.00010273,2]
[348716948,1736747444897,-607.5,0.00010273,2]
[348716949,1736747444907,-2152.95,0.00010273,2]
[348716950,1736747444917,-669.02,0.00010273,2]
[348716951,1736747444927,-745.5,0.00010273,2]
[348716952,1736747444938,-2006.99,0.00010273,2]
[348716953,1736747444947,-669.52,0.00010273,2]
[348716954,1736747444957,-1633.75,0.00010273,2]
[348716955,1736747444970,-1009.58,0.00010273,2]
[348716956,1736747444979,-500.0,0.00010273,2]
[348716957,1736747444989,-500.0,0.00010273,2]
[348716958,1736747445000,-897.05,0.00010273,2]
[348716959,1736747445011,-642.1,0.00010273,2]
[348716960,1736747445021,-2244.35,0.00010273,2]
[348716961,1736747445030,-2174.12,0.00010273,2]
[348716962,1736747445041,-654.37,0.00010273,2]
[348716963,1736747445051,-500.0,0.00010273,2]
[348716964,1736747445060,-1286.4,0.00010273,2]
[348716965,1736747445070,-843.37,0.00010273,2]
[348716966,1736747445079,-513.99,0.00010273,2]
[348716967,1736747445093,-2480.9,0.00010273,2]
[348716968,1736747445103,-1557.94,0.00010273,2]
[348716969,1736747445113,-924.59,0.00010273,2]
[348716970,1736747445123,-734.07,0.00010273,2]
[348716971,1736747445133,-830.82,0.00010273,2]
[348716972,1736747445143,-773.74,0.00010273,2]
[348716973,1736747445154,-395.48,0.00010273,2]
[348716974,1736747445163,-5830.876357,0.000103,2]
[348716975,1736747445173,-200.0,0.00010303,2]
[348716976,1736747445183,-2000.0,0.00010303,2]
[348716977,1736747445193,-200.0,0.00010303,2]
[348716978,1736747445203,-2000.0,0.00010303,2]
[348716979,1736747445212,-200.0,0.00010303,2]
[348716980,1736747445222,-725.61,0.00010332,2]